bitfinex/quotes_BTCUSD_20250829
["timestamp","ask_amount","ask_price","bid_price","bid_amount"]
[1756495715880,1.11168343,108860.0,108850.0,0.41768909]
[1756495716092,1.11168343,108860.0,108850.0,0.25976909]
[1756495716288,1.11168343,108860.0,108850.0,0.41768909]
[1756495720087,0.92796122,108860.0,108850.0,0.41768909]
[1756495720547,1.11168343,108860.0,108850.0,0.41768909]
[1756495720864,0.92796122,108860.0,108850.0,0.41768909]
[1756495721471,1.11168343,108860.0,108850.0,0.41768909]
[1756495721670,0.92796122,108860.0,108850.0,0.41768909]
[1756495721871,0.37359736,108860.0,108850.0,0.50598541]
[1756495723175,0.55731957,108860.0,108850.0,0.50598541]
[1756495724055,0.55731957,108860.0,108850.0,0.34806541]
[1756495724056,1.11168343,108860.0,108850.0,0.34806541]
[1756495724216,1.11168343,108860.0,108850.0,0.50382541]
[1756495724845,1.09444571,108860.0,108850.0,0.50382541]
[1756495725050,1.11169274,108860.0,108850.0,0.50594541]
[1756495725621,1.19998906,108860.0,108850.0,0.16432632]
[1756495725826,1.19998906,108860.0,108850.0,0.22856]
[1756495726024,0.6456252,108860.0,108850.0,0.22856]
[1756495726243,1.22761606,108860.0,108850.0,0.22856]
[1756495727449,0.18375597,108840.0,108830.0,0.25739269]
[1756495727637,0.761831,108840.0,108830.0,0.31979632]
[1756495728018,1.19012732,108840.0,108830.0,0.07068]
[1756495728208,1.101831,108840.0,108830.0,0.22856]
[1756495728347,1.09536432,108840.0,108830.0,0.2315]
[1756495728550,1.10182268,108840.0,108830.0,0.2315]
[1756495728794,1.10182268,108840.0,108830.0,0.2335]
[1756495728970,1.10182268,108840.0,108830.0,0.41943285]
[1756495729354,1.10182268,108840.0,108830.0,0.42143285]
[1756495730304,1.65618654,108840.0,108830.0,0.42143285]
[1756495730939,1.65618654,108840.0,108830.0,0.41943285]
[1756495731232,1.31618654,108840.0,108830.0,0.41943285]
[1756495733918,1.31618654,108840.0,108830.0,0.07268]
[1756495734140,1.31618654,108840.0,108830.0,0.23052]
[1756495734410,1.34382054,108840.0,108830.0,0.23052]
[1756495735075,1.34382054,108840.0,108830.0,0.41943285]
[1756495735418,0.78944678,108840.0,108830.0,0.41943285]
[1756495735949,0.5992363,108840.0,108830.0,0.41943285]
[1756495736325,0.59920849,108840.0,108830.0,0.41943285]
[1756495736740,0.75533046,108840.0,108830.0,0.50772917]
[1756495738402,0.75533046,108840.0,108830.0,0.32395632]
[1756495738611,1.30969432,108840.0,108830.0,0.50772917]
[1756495739471,1.30969432,108840.0,108830.0,0.32395632]
[1756495739777,1.30969432,108840.0,108830.0,0.32179632]
[1756495739921,1.31614775,108840.0,108830.0,0.16395632]
[1756495740120,1.31614775,108840.0,108830.0,0.50772917]
[1756495740748,1.13239178,108840.0,108830.0,0.50772917]
[1756495740955,1.30969432,108840.0,108830.0,0.50772917]
[1756495741376,0.75533046,108840.0,108830.0,0.50772917]
[1756495742205,0.01721063,108840.0,108830.0,0.50772917]
[1756495742354,0.91157449,108840.0,108830.0,0.50772917]
[1756495742552,0.57157449,108840.0,108830.0,0.50772917]
[1756495744337,0.57157449,108840.0,108830.0,0.50556917]
[1756495744470,0.57157449,108840.0,108830.0,0.50772917]
[1756495744661,0.55436386,108840.0,108830.0,0.50772917]
[1756495744863,0.57157248,108840.0,108830.0,0.50772917]
[1756495745486,0.75532845,108840.0,108830.0,0.34988917]
[1756495745688,0.75532878,108840.0,108830.0,0.50772917]
[1756495746119,0.20096492,108840.0,108830.0,0.50772917]
[1756495746274,0.75532878,108840.0,108830.0,0.50772917]
[1756495746483,0.57157281,108840.0,108830.0,0.50772917]
[1756495747332,0.75532878,108840.0,108830.0,0.34474917]
[1756495747609,0.75532878,108840.0,108830.0,0.50772917]
[1756495749957,1.30969264,108840.0,108830.0,0.31877632]
[1756495750705,1.30969264,108840.0,108830.0,0.23048]
[1756495750955,1.31614805,108840.0,108830.0,0.23048]
[1756495751461,1.31614805,108840.0,108830.0,0.1598]
[1756495751665,1.74444437,108840.0,108830.0,0.1598]
[1756495751866,1.79843674,108840.0,108830.0,0.1598]
[1756495752068,1.97061802,108840.0,108830.0,0.1598]
[1756495752294,2.5106006,108840.0,108830.0,0.002]
[1756495753482,2.3528006,108840.0,108830.0,0.002]
[1756495753657,1.79843674,108840.0,108830.0,0.002]
[1756495754302,2.5106006,108840.0,108830.0,0.002]
[1756495754500,2.53384394,108840.0,108830.0,0.002]
[1756495754819,2.5304348,108840.0,108830.0,0.002]
[1756495755192,0.52377285,108830.0,108820.0,0.1578]
[1756495755343,0.57422913,108830.0,108820.0,0.1578]
[1756495755546,1.68295685,108830.0,108820.0,0.1578]
[1756495757907,1.71159485,108830.0,108820.0,0.1578]
[1756495758107,0.18378974,108820.0,108810.0,0.22848]
[1756495758416,1.31619673,108820.0,108810.0,0.22848]
[1756495758792,1.40449305,108820.0,108810.0,0.22848]
[1756495759353,1.40449305,108820.0,108810.0,0.22956756]
[1756495760219,1.43213205,108820.0,108810.0,0.23249756]
[1756495760419,1.34383573,108820.0,108810.0,0.23249756]
[1756495760568,1.34383573,108820.0,108810.0,0.23463756]
[1756495763872,0.78947187,108820.0,108810.0,0.23463756]
[1756495764396,0.78947187,108820.0,108810.0,0.07683756]
[1756495765889,0.7894297,108820.0,108810.0,0.07683756]
[1756495767128,0.7894297,108820.0,108810.0,0.26064419]
[1756495767351,0.7617907,108820.0,108810.0,0.41840419]
[1756495767760,1.1017907,108820.0,108810.0,0.41840419]
[1756495768673,1.1017907,108820.0,108810.0,0.41740419]
[1756495768876,1.1017907,108820.0,108810.0,0.41840419]
[1756495770242,1.1017907,108820.0,108810.0,0.41940419]
[1756495771803,0.91800096,108820.0,108810.0,0.41940419]
[1756495771954,0.75534422,108820.0,108810.0,0.52863933]
[1756495772786,0.57155448,108820.0,108810.0,0.52863933]
[1756495773210,0.75534422,108820.0,108810.0,0.52863933]
[1756495773406,0.76179406,108820.0,108810.0,0.52859933]
[1756495773613,0.02364046,108820.0,108810.0,0.52859933]
[1756495773815,0.57800432,108820.0,108810.0,0.52859933]
[1756495774121,0.57155448,108820.0,108810.0,0.52859933]
[1756495776198,0.55436386,108820.0,108810.0,0.52859933]
[1756495776363,0.57157124,108820.0,108810.0,0.52859933]
[1756495779312,0.01720738,108820.0,108810.0,0.52859933]
[1756495780469,0.01720738,108820.0,108810.0,1.08296319]
[1756495781187,0.52375628,108840.0,108830.0,0.18377285]
[1756495781188,0.34,108840.0,108830.0,0.18377285]
[1756495781386,0.54743813,108840.0,108830.0,0.41720285]
[1756495783804,1.10180199,108840.0,108830.0,0.41720285]
[1756495784475,0.91804602,108840.0,108830.0,0.41720285]
[1756495784997,1.10180199,108840.0,108830.0,0.41720285]
[1756495785279,1.09534322,108840.0,108830.0,0.41720285]
[1756495785491,0.54097936,108840.0,108830.0,0.41720285]
[1756495786070,1.09534322,108840.0,108830.0,0.41720285]
[1756495786275,0.01722339,108840.0,108830.0,0.52643799]
[1756495786434,0.01722339,108840.0,108830.0,0.5905774]
[1756495786634,1.07810538,108850.0,108840.0,0.18375597]
[1756495786848,0.36365716,108850.0,108840.0,0.27712229]
[1756495788337,0.5409443,108850.0,108840.0,0.27712229]
[1756495788705,0.5409443,108850.0,108840.0,0.27812229]
[1756495788911,0.35720521,108850.0,108840.0,0.27812229]
[1756495789380,0.35720521,108850.0,108840.0,0.27912229]
[1756495790405,0.5409443,108850.0,108840.0,0.27912229]
[1756495790601,0.5409443,108850.0,108840.0,0.43676229]
[1756495791067,1.09530816,108850.0,108840.0,0.43676229]
[1756495791436,1.09514826,108850.0,108840.0,0.43676229]
[1756495792045,0.35704531,108850.0,108840.0,0.43676229]
[1756495794007,0.01720521,108850.0,108840.0,0.46800054]
[1756495794858,0.01720521,108850.0,108840.0,1.0223644]
[1756495795408,0.53357081,108860.0,108850.0,0.18373909]
[1756495795640,0.36703574,108860.0,108850.0,0.25956909]
[1756495796042,0.55075795,108860.0,108850.0,0.25956909]
[1756495796808,0.36703574,108860.0,108850.0,0.25956909]
[1756495796941,0.02703574,108860.0,108850.0,0.25956909]
[1756495797149,0.02703441,108860.0,108850.0,0.25956909]
[1756495797568,0.02703441,108860.0,108850.0,0.41712909]
[1756495797967,0.02703381,108860.0,108850.0,0.41712909]
[1756495798159,0.02703381,108860.0,108850.0,0.52636423]
[1756495798391,0.58139767,108860.0,108850.0,0.52636423]
[1756495799294,0.02703381,108860.0,108850.0,0.52636423]
[1756495800583,0.76511988,108860.0,108850.0,0.52121423]
[1756495800788,0.76511988,108860.0,108850.0,0.17991514]
[1756495801119,0.02703381,108860.0,108850.0,0.52636423]
[1756495804803,0.0171859,108860.0,108850.0,0.52636423]
[1756495804949,0.0171859,108860.0,108850.0,0.56712177]
[1756495805968,0.0171859,108860.0,108850.0,0.56912177]
[1756495806370,0.3496668,108870.0,108860.0,0.20466103]
[1756495806592,0.37329935,108870.0,108860.0,0.29810735]
[1756495806792,0.92766321,108870.0,108860.0,0.29810735]
[1756495806994,0.37329935,108870.0,108860.0,0.29810735]
[1756495807617,0.37329935,108870.0,108860.0,0.29910735]
[1756495808458,0.02685411,108870.0,108860.0,0.29910735]
[1756495808652,0.02685411,108870.0,108860.0,0.30010735]
[1756495809060,0.01718731,108870.0,108860.0,0.85447121]
[1756495809606,0.01718731,108870.0,108860.0,1.01195121]
[1756495809841,0.01718731,108870.0,108860.0,0.45758735]
[1756495810039,0.55436386,108880.0,108870.0,0.18370533]
[1756495810262,0.58106498,108880.0,108870.0,0.50531165]
[1756495811047,0.02670112,108880.0,108870.0,0.50531165]
[1756495811282,0.58106498,108880.0,108870.0,0.50631165]
[1756495811485,0.58106498,108880.0,108870.0,0.34883165]
[1756495811692,0.58106498,108880.0,108870.0,0.50631165]
[1756495812212,0.58106498,108880.0,108870.0,0.50731165]
[1756495813355,0.58106498,108880.0,108870.0,0.34983165]
[1756495813603,0.58105272,108880.0,108870.0,0.50727165]
[1756495816414,0.02668886,108880.0,108870.0,0.50727165]
[1756495816628,0.58105272,108880.0,108870.0,0.50727165]
[1756495817052,0.58105214,108880.0,108870.0,0.34983165]
[1756495817287,0.58105214,108880.0,108870.0,0.50727165]
[1756495820379,0.02668828,108880.0,108870.0,0.50727165]
[1756495820577,0.58105214,108880.0,108870.0,0.50727165]
[1756495822421,0.01731686,108880.0,108870.0,0.50727165]
[1756495823666,0.01731686,108880.0,108870.0,0.50627165]
[1756495823889,0.01731686,108880.0,108870.0,0.50827165]
[1756495824085,0.01731686,108880.0,108870.0,0.50727165]
[1756495824525,0.01731686,108880.0,108870.0,0.50927165]
[1756495825335,0.01731686,108880.0,108870.0,0.53021047]
[1756495825561,0.01731686,108880.0,108870.0,1.08457433]
[1756495825771,0.01731686,108880.0,108870.0,1.11218733]
[1756495826129,0.01731686,108880.0,108870.0,0.55782347]
[1756495826273,0.01731686,108880.0,108870.0,0.95782347]
[1756495826680,0.01731686,108880.0,108870.0,1.51218733]
[1756495827508,0.01732794,108880.0,108870.0,1.51218733]
[1756495828214,0.01732737,108880.0,108870.0,1.51218733]
[1756495830594,0.01732737,108880.0,108870.0,1.50818733]
[1756495830841,0.01732737,108880.0,108870.0,1.51018733]
[1756495831141,0.01732737,108880.0,108870.0,1.51318733]
[1756495831691,0.00014281,108880.0,108870.0,1.85318733]
[1756495832338,0.00014281,108880.0,108870.0,2.40755119]
[1756495832582,0.89436386,108920.0,108910.0,0.18363786]
[1756495832787,0.9181344,108920.0,108910.0,0.49985418]
[1756495833663,1.1017554,108920.0,108910.0,0.34257418]
[1756495833869,0.9181344,108920.0,108910.0,0.49985418]
[1756495834053,0.36377054,108920.0,108910.0,0.525943]
[1756495834260,0.5781344,108920.0,108910.0,0.523863]
[1756495834474,0.57813258,108920.0,108910.0,0.520793]
[1756495835186,0.58747391,108920.0,108910.0,0.520793]
[1756495835540,0.58747391,108920.0,108910.0,0.523863]
[1756495835719,0.58747391,108920.0,108910.0,0.520793]
[1756495835937,0.58747391,108920.0,108910.0,0.363513]
[1756495836058,0.58747391,108920.0,108910.0,0.520793]
[1756495837934,0.56384792,108920.0,108910.0,0.520793]
[1756495838136,0.58747522,108920.0,108910.0,0.520793]
[1756495838336,0.58747522,108920.0,108910.0,0.525943]
[1756495838538,0.58747631,108920.0,108910.0,0.525943]
[1756495838937,0.58747631,108920.0,108910.0,0.523863]
[1756495839142,0.58747631,108920.0,108910.0,0.520793]
[1756495839397,0.58747631,108920.0,108910.0,0.523863]
[1756495839662,0.03311245,108920.0,108910.0,0.525943]
[1756495839865,0.58747631,108920.0,108910.0,0.525943]
[1756495840072,0.03311245,108920.0,108910.0,0.525943]
[1756495840523,0.01732622,108920.0,108910.0,0.525943]
[1756495842037,0.01732622,108920.0,108910.0,0.525863]
[1756495842975,0.01732622,108920.0,108910.0,0.526863]
[1756495843197,0.01732622,108920.0,108910.0,0.527863]
[1756495844418,0.38605445,108940.0,108930.0,0.20454296]
[1756495844653,0.3929684,108940.0,108930.0,0.45518928]
[1756495844846,0.01635204,108940.0,108930.0,0.45518928]
[1756495845050,0.00047566,108940.0,108930.0,0.45518928]
[1756495845232,0.55483952,108940.0,108930.0,0.45518928]
[1756495846023,0.00047566,108940.0,108930.0,0.45518928]
[1756495846418,0.00047566,108940.0,108930.0,0.29798928]
[1756495846900,0.00047566,108940.0,108930.0,0.45518928]
[1756495847405,0.55483952,108940.0,108930.0,0.29898928]
[1756495847669,0.55483952,108940.0,108930.0,0.45199928]
[1756495847873,0.55483952,108940.0,108930.0,0.45506928]
[1756495848293,0.00047566,108940.0,108930.0,0.45714928]
[1756495848487,0.55483952,108940.0,108930.0,0.45714928]
[1756495850668,0.00047566,108940.0,108930.0,0.45714928]
[1756495850861,0.55483952,108940.0,108930.0,0.45714928]
[1756495852054,0.00047566,108940.0,108930.0,0.45714928]
[1756495852262,0.55483952,108940.0,108930.0,0.45714928]
[1756495852464,0.00047566,108940.0,108930.0,0.45714928]
[1756495852665,0.55483952,108940.0,108930.0,0.45714928]
[1756495853154,0.00047566,108940.0,108930.0,0.45714928]
[1756495853352,0.55483952,108940.0,108930.0,0.45714928]
[1756495853598,0.55483952,108940.0,108930.0,0.49905165]
[1756495853798,0.55483952,108940.0,108930.0,0.34189165]
[1756495854182,0.73842681,108940.0,108930.0,0.29483928]
[1756495854378,0.73842681,108940.0,108930.0,0.45199928]
[1756495854631,0.73842681,108940.0,108930.0,0.26839514]
[1756495854783,0.18406295,108940.0,108930.0,0.43102046]
[1756495854964,0.00047566,108940.0,108930.0,0.43102046]
[1756495855195,0.00047566,108940.0,108930.0,0.43594046]
[1756495855599,0.00047566,108940.0,108930.0,0.43398046]
[1756495855978,0.55483952,108940.0,108930.0,0.43398046]
[1756495856389,0.57200616,108940.0,108930.0,0.51863943]
[1756495856939,0.57200616,108940.0,108930.0,0.51667943]
[1756495857147,0.57200616,108940.0,108930.0,0.45687928]
[1756495858373,0.57200616,108940.0,108930.0,0.45491928]
[1756495858563,0.75559345,108940.0,108930.0,0.45195928]
[1756495858852,0.75559844,108940.0,108930.0,0.45195928]
[1756495860549,0.76204014,108940.0,108930.0,0.45195928]
[1756495860754,1.656404,108940.0,108930.0,0.002]
[1756495860964,1.656404,108940.0,108930.0,0.15912]
[1756495861437,1.10204014,108940.0,108930.0,0.15912]
[1756495861813,1.10204014,108940.0,108930.0,0.15812]
[1756495862420,1.10204014,108940.0,108930.0,0.15712]
[1756495863057,1.12964814,108940.0,108930.0,0.15712]
[1756495863495,0.52362077,108930.0,108910.0,0.25723786]
[1756495863703,0.55436386,108920.0,108910.0,0.366473]
[1756495863822,0.01717163,108920.0,108910.0,0.523593]
[1756495864022,1.09515626,108930.0,108910.0,0.525553]
[1756495864248,0.55436386,108920.0,108910.0,0.525553]
[1756495864455,0.57153549,108920.0,108910.0,0.525553]
[1756495865078,0.57153549,108920.0,108910.0,0.526553]
[1756495865280,1.18345281,108920.0,108910.0,0.07164]
[1756495865563,1.74426606,108920.0,108910.0,0.07064]
[1756495865726,1.7811346,108920.0,108910.0,0.22872]
[1756495865898,1.22677074,108920.0,108910.0,0.23172]
[1756495866100,1.7811346,108920.0,108910.0,0.23172]
[1756495866307,1.22677074,108920.0,108910.0,0.22872]
[1756495866587,1.24975114,108920.0,108910.0,0.07264]
[1756495866790,1.24975114,108920.0,108910.0,0.22912]
[1756495867006,1.804115,108920.0,108910.0,0.22912]
[1756495867877,1.24975114,108920.0,108910.0,0.22912]
[1756495868085,1.16146809,108920.0,108910.0,0.22912]
[1756495868489,1.15502238,108920.0,108910.0,0.22912]
[1756495868662,1.16146616,108920.0,108910.0,0.22912]
[1756495869038,1.71583002,108920.0,108910.0,0.22912]
[1756495869435,0.5841219,108920.0,108910.0,0.22912]
[1756495869640,1.13848576,108920.0,108910.0,0.22912]
[1756495870504,1.13848576,108920.0,108910.0,0.23208]
[1756495871157,1.13848576,108920.0,108910.0,0.43861668]
[1756495871664,1.13848576,108920.0,108910.0,0.25497882]
[1756495871816,1.13848576,108920.0,108910.0,0.43861668]
[1756495872353,1.13848576,108920.0,108910.0,0.25497882]
[1756495872705,1.13848576,108920.0,108910.0,0.43861668]
[1756495873109,0.95486476,108920.0,108910.0,0.43861668]
[1756495873360,1.13848576,108920.0,108910.0,0.25497882]
[1756495874964,1.13848576,108920.0,108910.0,0.43861668]
[1756495875162,1.13204198,108920.0,108910.0,0.25497882]
[1756495876412,1.13204198,108920.0,108910.0,0.43861668]
[1756495877069,1.13204198,108920.0,108910.0,0.25497882]
[1756495877582,1.13204198,108920.0,108910.0,0.526913]
[1756495878295,1.10442998,108920.0,108910.0,0.526913]
[1756495878506,1.0872414,108920.0,108910.0,0.34327514]
[1756495878704,1.10440746,108920.0,108910.0,0.34327514]
[1756495879080,1.0872414,108920.0,108910.0,0.34327514]
[1756495879276,1.10440748,108920.0,108910.0,0.34327514]
[1756495879501,1.10440748,108920.0,108910.0,0.526913]
[1756495879702,1.10440748,108920.0,108910.0,0.34327514]
[1756495880244,1.10440748,108920.0,108910.0,0.34131514]
[1756495880422,1.1937038,108920.0,108910.0,0.07064]
[1756495880578,1.1937038,108920.0,108910.0,0.22916]
[1756495880783,1.2203138,108920.0,108910.0,0.22916]
[1756495880979,1.13201748,108920.0,108910.0,0.23225]
[1756495881206,1.13201748,108920.0,108910.0,0.07064]
[1756495881421,1.13201748,108920.0,108910.0,0.2292]
[1756495882186,0.57765362,108920.0,108910.0,0.23229]
[1756495882614,1.13201748,108920.0,108910.0,0.23229]
[1756495882996,1.13201748,108920.0,108910.0,0.23437]
[1756495883199,1.13201748,108920.0,108910.0,0.23229]
[1756495883512,1.13201748,108920.0,108910.0,0.2292]
[1756495883712,1.13201748,108920.0,108910.0,0.15856]
[1756495883914,0.18365472,108900.0,108890.0,0.09157882]
[1756495884128,1.64954852,108900.0,108890.0,0.34039514]
[1756495884458,1.64954852,108900.0,108890.0,0.18296514]
[1756495884679,1.67716352,108900.0,108890.0,0.23112]
[1756495884795,1.68360654,108900.0,108890.0,0.23112]
[1756495885234,1.67716352,108900.0,108890.0,0.23226273]
[1756495885452,1.68360753,108900.0,108890.0,0.23226273]
[1756495885690,1.68362295,108900.0,108890.0,0.23126273]
[1756495885896,1.68362295,108900.0,108890.0,0.23326273]
[1756495886109,1.68362295,108900.0,108890.0,0.23635273]
[1756495886308,1.68362295,108900.0,108890.0,0.23126273]
[1756495887583,1.68362295,108900.0,108890.0,0.23114273]
[1756495887941,0.57489523,108900.0,108890.0,0.07595273]
[1756495888149,1.67717894,108900.0,108890.0,0.23415273]
[1756495888348,1.68362514,108900.0,108890.0,0.07387273]
[1756495888535,1.68362514,108900.0,108890.0,0.23411273]
[1756495889031,1.68363198,108900.0,108890.0,0.23411273]
[1756495889601,1.47393314,108900.0,108890.0,0.23411273]
[1756495889882,1.65758786,108900.0,108890.0,0.23411273]
[1756495891491,0.54886014,108900.0,108890.0,0.23619273]
[1756495891628,1.65758786,108900.0,108890.0,0.23411273]
[1756495892033,1.65758786,108900.0,108890.0,0.23619273]
[1756495892862,1.65758786,108900.0,108890.0,0.23102273]
[1756495893088,1.76970773,108900.0,108890.0,0.00014273]
[1756495893284,2.34731493,108900.0,108890.0,0.00014273]
[1756495893478,2.32407159,108900.0,108890.0,0.00014273]
[1756495893730,1.76970773,108900.0,108890.0,0.00014273]
[1756495894324,1.92990773,108900.0,108890.0,0.00014273]
[1756495895510,0.82118001,108900.0,108890.0,0.00014273]
[1756495895850,1.84261141,108900.0,108890.0,0.00014273]
[1756495897231,2.39697527,108900.0,108890.0,0.00014273]
[1756495898368,2.39681527,108900.0,108890.0,0.00014273]
[1756495898868,1.84245141,108900.0,108890.0,0.00014273]
[1756495899068,1.93074773,108900.0,108890.0,0.00014273]
[1756495899478,1.94512279,108900.0,108890.0,0.00014273]
[1756495899657,0.52368846,108880.0,108870.0,0.23373]
[1756495899864,1.10167491,108880.0,108870.0,0.23365]
[1756495900359,1.12929791,108880.0,108870.0,0.23365]
[1756495900601,1.12929791,108880.0,108870.0,0.07581]
[1756495900763,1.68366177,108880.0,108870.0,0.23052]
[1756495901387,1.72214622,108880.0,108870.0,0.23052]
[1756495901592,0.52370533,108870.0,108860.0,0.00309]
[1756495901915,0.52372221,108860.0,108850.0,0.09466882]
[1756495902118,1.1017074,108860.0,108850.0,0.25469163]
[1756495902325,1.12289114,108860.0,108850.0,0.25677163]
[1756495902673,1.12933037,108860.0,108850.0,0.25677163]
[1756495903130,1.12933037,108860.0,108850.0,0.23579281]
[1756495903306,1.21762669,108860.0,108850.0,0.23779281]
[1756495904122,0.57496651,108860.0,108850.0,0.23679281]
[1756495904301,1.12933037,108860.0,108850.0,0.23679281]
[1756495905139,0.57496651,108860.0,108850.0,0.23679281]
[1756495905351,1.12933037,108860.0,108850.0,0.23679281]
[1756495905726,1.12933037,108860.0,108850.0,0.23779281]
[1756495910836,1.12930385,108860.0,108850.0,0.23779281]
[1756495911911,0.57493999,108860.0,108850.0,0.23779281]
[1756495912139,1.12930385,108860.0,108850.0,0.23779281]
[1756495913851,1.12930385,108860.0,108850.0,0.23715281]
[1756495915352,1.12930385,108860.0,108850.0,0.23507281]
[1756495915729,1.12930385,108860.0,108850.0,0.23710281]
[1756495918649,1.12930385,108860.0,108850.0,0.07587281]
[1756495918849,1.21760017,108860.0,108850.0,0.07278281]
[1756495919051,1.24311095,108860.0,108850.0,0.16122281]
[1756495919458,1.15481463,108860.0,108850.0,0.16122281]
[1756495919832,1.15481463,108860.0,108850.0,0.16022281]
[1756495920211,1.15481463,108860.0,108850.0,0.15922281]
[1756495920424,1.15486366,108860.0,108850.0,0.15922281]
[1756495920893,1.15486366,108860.0,108850.0,0.16227281]
[1756495921476,1.15486366,108860.0,108850.0,0.15914281]
[1756495921680,1.21091287,108860.0,108850.0,0.15914281]
[1756495922045,1.70922752,108860.0,108850.0,0.15910281]
[1756495922463,1.70922752,108860.0,108850.0,0.00014281]
[1756495922710,0.6004998,108860.0,108850.0,0.00014281]
[1756495922908,1.15486366,108860.0,108850.0,0.00014281]
[1756495924214,0.6004998,108860.0,108850.0,0.00014281]
[1756495924435,1.12935288,108860.0,108850.0,0.00522281]
[1756495924992,1.12935288,108860.0,108850.0,0.16406281]
[1756495925196,1.12935288,108860.0,108850.0,0.16402281]
[1756495928772,1.77201306,108860.0,108850.0,0.15882281]
[1756495928934,1.7952564,108860.0,108850.0,0.15882281]
[1756495929138,1.81510135,108860.0,108850.0,0.15882281]
[1756495929337,1.79185801,108860.0,108850.0,0.15882281]
[1756495929525,1.79185801,108860.0,108850.0,0.00014281]
[1756495929727,1.7919014,108860.0,108850.0,0.00014281]
[1756495930134,1.70360508,108860.0,108850.0,0.00014281]
[1756495930752,1.86224508,108860.0,108850.0,0.00014281]
[1756495931029,1.86225109,108860.0,108850.0,0.00014281]
[1756495932769,1.86325109,108860.0,108850.0,0.00014281]
[1756495933195,1.84602549,108860.0,108850.0,0.00014281]
[1756495933480,1.86326114,108860.0,108850.0,0.00014281]
[1756495934067,1.70462114,108860.0,108850.0,0.00522281]
[1756495934636,1.70462114,108860.0,108850.0,0.00319281]
[1756495936601,1.70462433,108860.0,108850.0,0.00319281]
[1756495936801,1.73948707,108860.0,108850.0,0.00014281]
[1756495937211,1.92343785,108860.0,108850.0,0.00014281]
[1756495937408,1.94668119,108860.0,108850.0,0.00014281]
[1756495937628,2.55065197,108860.0,108850.0,0.00014281]
[1756495937952,7.58372934,108860.0,108850.0,0.00014281]
[1756495938291,1.63248369,108840.0,108830.0,0.07068]
[1756495938607,0.52377285,108830.0,108820.0,0.0751643]
[1756495938820,1.65619901,108830.0,108820.0,0.07525186]
[1756495939037,1.65619901,108830.0,108820.0,0.07726186]
[1756495939586,1.65619901,108830.0,108820.0,8.756e-05]
[1756495939734,1.70707735,108830.0,108820.0,0.00514756]
[1756495939957,1.77213033,108830.0,108820.0,0.00313756]
[1756495940158,1.77211683,108830.0,108820.0,0.00313756]
[1756495940358,1.81321309,108830.0,108820.0,0.00513756]
[1756495940559,1.81321309,108830.0,108820.0,0.00313756]
[1756495940760,1.81320724,108830.0,108820.0,0.00313756]
[1756495941135,1.81320724,108830.0,108820.0,0.00513756]
[1756495941805,1.81320724,108830.0,108820.0,0.00313756]
[1756495941981,1.81320724,108830.0,108820.0,0.00413756]
[1756495942545,1.72491092,108830.0,108820.0,0.00614756]
[1756495943894,1.72491092,108830.0,108820.0,0.00413756]
[1756495944910,1.72491092,108830.0,108820.0,0.00614756]
[1756495948943,1.72491092,108830.0,108820.0,0.00108756]
[1756495950525,1.93329127,108830.0,108820.0,0.00108756]
[1756495950728,0.52380663,108810.0,108800.0,0.0004]
[1756495950930,0.52380663,108810.0,108800.0,0.00087584]
[1756495950931,2.39649061,108810.0,108800.0,0.00087584]
[1756495951224,2.39649153,108810.0,108800.0,0.00087584]
[1756495951454,2.42413553,108810.0,108800.0,0.00087584]
[1756495951616,2.49142659,108810.0,108800.0,0.00087584]
[1756495952016,2.49242659,108810.0,108800.0,0.00087584]
[1756495952422,0.76204395,108810.0,108800.0,0.00593584]
[1756495952627,2.42513553,108810.0,108800.0,0.00087584]
[1756495952872,2.42512975,108810.0,108800.0,0.00087584]
[1756495953079,2.26680975,108810.0,108800.0,0.00593584]
[1756495953279,2.42508975,108810.0,108800.0,0.00593584]
[1756495953485,2.51338607,108810.0,108800.0,0.00593584]
[1756495953733,2.51338607,108810.0,108800.0,0.00392584]
[1756495953940,2.52290369,108810.0,108800.0,0.00392584]
[1756495954710,2.52302369,108810.0,108800.0,0.00392584]
[1756495954925,2.52302369,108810.0,108800.0,0.00087584]
[1756495955310,2.36462369,108810.0,108800.0,0.00392584]
[1756495955647,1.69434195,108810.0,108800.0,0.00593584]
[1756495955862,1.69434195,108810.0,108800.0,0.18975936]
[1756495956212,1.13997809,108810.0,108800.0,0.18975936]
[1756495956413,1.69434195,108810.0,108800.0,0.34811936]
[1756495956865,1.69434195,108810.0,108800.0,0.16429584]
[1756495957020,1.70970918,108810.0,108800.0,0.34811936]
[1756495957218,1.70326383,108810.0,108800.0,0.34811936]
[1756495958020,0.36771825,108810.0,108800.0,0.5280345]
[1756495958229,1.6602526,108810.0,108800.0,0.5280345]
[1756495959995,1.6602526,108810.0,108800.0,0.07661584]
[1756495960198,1.6602526,108810.0,108800.0,0.23493584]
[1756495960375,1.6602526,108810.0,108800.0,0.41875936]
[1756495961172,1.66023376,108810.0,108800.0,0.41875936]
[1756495961392,1.68787376,108810.0,108800.0,0.41875936]
[1756495961592,1.68787376,108810.0,108800.0,0.23493584]
[1756495961819,1.68787376,108810.0,108800.0,0.41875936]
[1756495962225,1.50406713,108810.0,108800.0,0.43969818]
[1756495962428,1.50406713,108810.0,108800.0,0.5279945]
[1756495962631,1.68787376,108810.0,108800.0,0.5279945]
[1756495962795,1.66023376,108810.0,108800.0,0.5279945]
[1756495965363,1.47642713,108810.0,108800.0,0.5279945]
[1756495965785,1.13642713,108810.0,108800.0,0.5279945]
[1756495966162,1.32023376,108810.0,108800.0,0.5279945]
[1756495966363,1.32023376,108810.0,108800.0,0.18585098]
[1756495966569,1.32668681,108810.0,108800.0,0.07661584]
[1756495966808,1.32668681,108810.0,108800.0,0.07155584]
[1756495967014,1.41498313,108810.0,108800.0,0.15887584]
[1756495967253,1.35332681,108810.0,108800.0,0.15887584]
[1756495967992,1.69332681,108810.0,108800.0,0.15887584]
[1756495968725,1.69432681,108810.0,108800.0,0.15887584]
[1756495969608,2.72581223,108810.0,108800.0,0.00087584]
[1756495969809,2.81410855,108810.0,108800.0,0.00087584]
[1756495971533,2.79692676,108810.0,108800.0,0.00087584]
[1756495971867,2.25978707,108810.0,108800.0,0.00087584]
[1756495972055,2.81415093,108810.0,108800.0,0.00087584]
[1756495972445,2.97203093,108810.0,108800.0,0.00087584]
[1756495974256,2.97195093,108810.0,108800.0,0.00087584]
[1756495975258,2.99178776,108810.0,108800.0,0.00087584]
[1756495975684,3.03983689,108810.0,108800.0,0.00087584]
[1756495975901,3.01660146,108810.0,108800.0,0.00087584]
[1756495976549,3.03983689,108810.0,108800.0,0.00087584]
[1756495978154,3.07291426,108810.0,108800.0,0.00087584]
[1756495978332,8.28349883,108810.0,108800.0,1e-08]
[1756495978548,8.30673426,108810.0,108800.0,1e-08]
[1756495978882,8.28192056,108810.0,108800.0,1e-08]
[1756495979082,8.28092056,108810.0,108800.0,1e-08]
[1756495979291,8.23492056,108810.0,108800.0,1e-08]
[1756495979745,8.26268513,108810.0,108800.0,1e-08]
[1756495980194,8.23646927,108810.0,108800.0,1e-08]